Cogmind - Beta 10.2 *** ADVENTURER MODE // 2021.11.14 @ 17:24:19 // AFD2020/Player2 Player: lcbb_tuk Result: Core destroyed Performance ------------- Evolutions (0) 0 Regions Visited (2) 400 Robots Destroyed (8) 40 Value Destroyed (257) 257 Prototype IDs (0) 0 Alien Tech Used (0) 0 Bonus (33) 33 TOTAL SCORE: 730 Bonus ------- Follower Combat Kills 75 Friendly Fire -42 Cogmind --------- Core Integrity 0/250 Matter 265/300 Energy 124/125 System Corruption 0% Temperature Cool (63) Movement Core (200) Ox3 Location -10/Mines Parts ------- > --- POWER (1) -------- Light Ion Engine > --- PROPULSION (2) --- Light Treads > --- UTILITY (2) ------ Disposable Heat Sink Small Storage Unit > --- WEAPON (2) ------- Assault Rifle > --- INVENTORY (6) ---- Light Treads Disposable Heat Sink Disposable Heat Sink Peak State ------------ > --- POWER ------------ Light Ion Engine > --- PROPULSION ------- Light Treads Wheel > --- UTILITY ---------- Disposable Heat Sink Small Storage Unit > --- WEAPON ----------- Small Laser Assault Rifle > --- INVENTORY -------- Light Treads [Rating: 8] Favorites ----------- Power Light Ion Engine Engine Light Ion Engine Propulsion Light Treads Treads Light Treads Wheel Wheel Utility Small Storage Unit Device Disposable Heat Sink Storage Small Storage Unit Weapon Assault Rifle Energy Gun Small Laser Ballistic Gun Assault Rifle Build | -11 -10 -10 ------- Run | Scr Mat Min Slots Evolved . | . . . Power . | . . . Propulsion . | . . . Utility . | . . . Weapon . | . . . Parts Attached 7 | 6 1 . Power 1 | 1 . . Engine 1 | 1 . . Core . | . . . Reactor . | . . . Propulsion 2 | 2 . . Treads 1 | 1 . . Leg . | . . . Wheel 1 | 1 . . Hover . | . . . Flight . | . . . Utility 2 | 1 1 . Device 1 | . 1 . Storage 1 | 1 . . Processor . | . . . Hackware . | . . . Protection . | . . . Artifact . | . . . Weapon 2 | 2 . . Energy Gun 1 | 1 . . Energy Cannon . | . . . Ballistic Gun 1 | 1 . . Ballistic Cannon . | . . . Launcher . | . . . Special Weapon . | . . . Impact Weapon . | . . . Slashing Weapon . | . . . Piercing Weapon . | . . . Special Melee Weapon . | . . . Unidentified Prototypes . | . . . Parts Lost 2 | . . 2 Power . | . . . Propulsion 1 | . . 1 Utility . | . . . Weapon 1 | . . 1 Highest Loss Streak 2 | . . 2 Average Slot Usage (%) 93 | . 91 97 Engine 14 | . 14 14 Treads 14 | . 14 14 Wheel 13 | . 14 12 Device 9 | . 5 14 Storage 14 | . 14 14 Energy Gun 13 | . 14 12 Ballistic Gun 14 | . 14 14 Naked Turns . | . . . Heaviest Build 11 | 10 11 11 Greatest Support 20 | 20 10 10 Greatest Overweight (x) 1 | . 1 1 Average Overweight (x) . | . . 1 Largest Inventory Capacity 6 | 6 6 6 Average Capacity 5 | 4 6 6 Most Carried 3 | 3 3 3 Average Carried 2 | 1 1 3 Final Capacity 6 | 6 6 6 Final Carried 3 | 3 3 3 Class Distribution -------------------- 100% | Mutant Dominant Class ---------------- Mutant | -10/Materials Mutant | -10/Mines Resources | -11 -10 -10 ----------- Run | Scr Mat Min Matter Collected 336 | 253 83 . Remotely . | . . . Salvage Created 380 | 58 196 126 Parts 12 | 3 7 2 Haulers Intercepted . | . . . Recyclers Shooed . | . . . Parts Field Recycled . | . . . Retrieved Matter . | . . . Parts Self-Destructed . | . . . Prevented . | . . . Kills | -11 -10 -10 ------- Run | Scr Mat Min Combat Hostiles Destroyed 10 | . 5 5 Guns 10 | . 5 5 Classes Destroyed 3 | 1 1 1 Recycler 1 | 1 . . Grunt 7 | . 5 2 Assembled 3 | . . 3 Best Kill Streak 5 | 1 2 5 Combat Bots Only 5 | . 2 5 Max Kills in Single Turn 1 | 1 1 1 Gunslinging . | . . . Exploded . | . . . Melee . | . . . Uniques/NPCs Destroyed . | . . . Combat | -11 -10 -10 -------- Run | Scr Mat Min Damage Taken 338 | . 121 217 Core 38 | . 8 30 Absorbed by Shields . | . . . Core Remaining (%) 100 | 100 . . Volleys Fired 37 | 3 19 15 Largest 2 | 2 2 2 Hottest 60 | 60 60 60 Shots Fired 71 | 6 38 27 Gun 71 | 6 38 27 Cannon . | . . . Launcher . | . . . Special . | . . . Kinetic 37 | 3 19 15 Thermal 34 | 3 19 12 Explosive . | . . . Electromagnetic . | . . . Robot Hit Streak 34 | 6 34 13 Robot Miss Streak 1 | . 1 1 Penetration Max . | . . . Secondary Targets 3 | . . 3 Max Gunslinging Chain 1 | . . 1 Shots Hit Robots 61 | 6 35 20 Core Hits 24 | 2 12 10 Critical Hits 1 | . 1 . Critical Kills 1 | . 1 . Critical Parts Destroyed . | . . . Melee Attacks . | . . . Impact . | . . . Slashing . | . . . Piercing . | . . . Sneak Attacks . | . . . Combat Hostiles . | . . . Follow-up Attacks . | . . . Damage Inflicted 757 | 75 442 240 Guns 757 | 75 442 240 Cannons . | . . . Explosions . | . . . Melee . | . . . Ramming . | . . . Kinetic 413 | 42 231 140 Thermal 344 | 33 211 100 Explosive . | . . . Electromagnetic . | . . . Impact . | . . . Slashing . | . . . Piercing . | . . . Highest Corruption . | . . . Average Corruption . | . . . Corruption Purged . | . . . Overload Shots . | . . . Overflow Damage . | . . . Projectiles . | . . . Explosions . | . . . Melee . | . . . Knockbacks . | . . . Impact . | . . . Kinetic . | . . . Secondary . | . . . Self-Inflicted Damage . | . . . Shots . | . . . Rammed . | . . . Targets Rammed . | . . . Kicked . | . . . Crushed . | . . . Highest Temperature 103 | . 24 103 Average Temperature 31 | . 17 47 Received Heat Transfer 187 | . 78 109 Siege Activations . | . . . Robots Corrupted . | . . . Combat Hostiles . | . . . Parts Fried . | . . . Impact Corruptions . | . . . Robots Melted . | . . . Combat Hostiles . | . . . Parts Melted . | . . . Heat Transferred 775 | 75 475 225 Parts Sabotaged . | . . . Parts Stolen . | . . . Parts Stripped . | . . . Power Chain Reactions . | . . . Missiles Intercepted . | . . . Alert | -11 -10 -10 ------- Run | Scr Mat Min Peak Influence 256 | 5 256 99 Initial 84 | . 2 84 Average 76 | 1 98 83 Maximum Alert Level 1 | . 1 . Low Security (%) 92 | 100 84 100 Level 1 7 | . 15 . Level 2 . | . . . Level 3 . | . . . Level 4 . | . . . Level 5 . | . . . High Security . | . . . Max Security . | . . . Squads Dispatched 3 | . 3 . Investigation 3 | . 3 . Extermination . | . . . Reinforcement . | . . . Assault . | . . . Garrison . | . . . Intercept . | . . . Construction Impeded . | . . . Haulers Reinforced . | . . . Stealth | -11 -10 -10 --------- Run | Scr Mat Min Distress Signals . | . . . Communications Jammed . | . . . Distress Signals . | . . . Times Spotted 17 | . 9 8 Peak Tracking Total 9 | . 3 9 Tactical Retreats 2 | . . 2 Traps | -11 -10 -10 ------- Run | Scr Mat Min Traps Triggered . | . . . Indirectly . | . . . Trap Hack Attempts . | . . . Triggered . | . . . Disarmed . | . . . Reprogrammed 4 | . 4 . Reused . | . . . Traps Extracted . | . . . Installed . | . . . Triggered . | . . . Machines | -11 -10 -10 ---------- Run | Scr Mat Min Machines Disabled . | . . . Max in Single Turn . | . . . Machines Sabotaged . | . . . Garrisons Compromised . | . . . Overloaded Fab Kills . | . . . Fab Network Shutdowns . | . . . Hacking | -11 -10 -10 --------- Run | Scr Mat Min Machines Accessed 3 | . 3 . Terminals 2 | . 2 . Fabricators . | . . . Repair Stations . | . . . Recycling Units 1 | . 1 . Scanalyzers . | . . . Garrison Access . | . . . Total Hacks 8 | . 8 . Successful 2 | . 2 . Failed 6 | . 6 . Catastrophic 2 | . 2 . Database Lockouts . | . . . Manual 8 | . 8 . Terminals 7 | . 7 . Fabricators . | . . . Repair Stations . | . . . Recycling Units 1 | . 1 . Scanalyzers . | . . . Garrison Access . | . . . Terminal Hacks 1 | . 1 . Reprogram Traps 1 | . 1 . Fabricator Hacks . | . . . Repair Station Hacks . | . . . Recycling Unit Hacks . | . . . Scanalyzer . | . . . Garrison Access Hacks . | . . . Unauthorized Hacks 1 | . 1 . Terminals . | . . . Fabricators . | . . . Repair Stations . | . . . Recycling Units 1 | . 1 . Tunnel 1 | . 1 . Scanalyzers . | . . . Garrison Access . | . . . Data Cores Recovered . | . . . Used . | . . . Hacking Detections 2 | . 2 . Full Trace Events . | . . . Feedback Events . | . . . Feedback Blocked . | . . . Robot Schematics Acquired . | . . . Robots Built . | . . . Matter . | . . . Time . | . . . Total Robot Build Rating . | . . . Part Schematics Acquired . | . . . Parts Built . | . . . Matter . | . . . Time . | . . . Total Part Build Rating . | . . . Parts Repaired . | . . . Time . | . . . Parts Recycled . | . . . Recycled Matter . | . . . Retrieved Matter . | . . . Retrieved Components . | . . . Parts Scanalyzed . | . . . Part Schematics Acquired . | . . . Parts Damaged . | . . . Bothacking | -11 -10 -10 ------------ Run | Scr Mat Min Used RIF Installer . | . . . Robots Hacked . | . . . Non-combat . | . . . Combat . | . . . Robot Hacks Applied . | . . . Relay Couplers Released . | . . . Robots Rewired . | . . . Allies Hacked . | . . . Hacks Repelled . | . . . Allies | -11 -10 -10 -------- Run | Scr Mat Min Total Allies 1 | . 1 . Largest Group 1 | . 1 1 Highest-Rated Group 57 | . 57 57 Highest-Rated Ally 57 | . 57 57 Total Orders . | . . . Ally Attacks 26 | . 18 8 Total Damage 265 | . 190 75 Kills 4 | . 3 1 Allies Corrupted . | . . . Allies Melted . | . . . Intel | -11 -10 -10 ------- Run | Scr Mat Min Robot Analysis Total . | . . . Derelict Logs Recovered . | . . . Drone Launches . | . . . Drone Recoveries . | . . . Exploration | -11 -10 -10 ------------- Run | Scr Mat Min Turns Passed 331 | 58 166 107 Spaces Moved 195 | 43 108 44 Core 5 | 5 . . Treads 6 | 6 . . Legs . | . . . Wheels 184 | 32 108 44 Hover . | . . . Flight . | . . . Fastest Speed 50 | 50 80 90 Average Speed 85 | 87 82 90 Slowest Speed 160 | 160 90 90 Overloaded Moves . | . . . Propulsion Burnouts . | . . . Robots Hopped . | . . . Cave-ins Triggered . | . . . Exploration Rate (%) 16 | 3 28 19 Regions Visited 2 Branch Regions 1 Pre-discovered Areas 1 | . 1 . Known Exits Taken . | . . . Unknown Exits Taken 2 | 1 1 . Scrap Searched 1 | . . 1 Spaces Dug . | . . . Terrain Destroyed . | . . . Melee . | . . . Projectile . | . . . AOE . | . . . Terrain Rammed . | . . . Walls Destroyed . | . . . Machines Disabled . | . . . Actions | -11 -10 -10 --------- Run | Scr Mat Min Total 287 | 54 147 86 Wait 43 | . 16 27 Move 193 | 42 107 44 Hop . | . . . Pick Up 5 | 3 2 . Fast Attach 7 | 6 1 . Attach . | . . . Detach . | . . . Swap . | . . . Drop 2 | . 2 . Fire 37 | 3 19 15 Melee . | . . . Ram . | . . . Kick . | . . . Crush . | . . . Escape Stasis . | . . . Rewire . | . . . Trap . | . . . Miscellaneous . | . . . Route ------- -11/Scrapyard -10/Materials -10/Mines History --------- Turn | Location | Event 45 | -11/Scrapyard | Discovered new exit (range 15) 59 | -11/Scrapyard | Entered Materials 212 | -10/Materials | Discovered new exit (range 8) 225 | -10/Materials | Entered Mines 225 | -10/Mines | Accompanied by 1 ally 278 | -10/Mines | Assembled infested the area 313 | -10/Mines | Build established: Mutant 315 | -10/Mines | Core integrity fell below 50% 325 | -10/Mines | Core integrity fell below 20% 332 | -10/Mines | Core destroyed Last Messages --------------- 00227_ Found 34 Matter. 00227_ Found Lgt. Treads. 00227_ Found 36 Matter. 00229_ Player 2 acquires Lgt. Treads. 00231_ K-01 Serf collects debris. Player 2: "Did you hear infestation noises? I heard infestation noises." 00237_ K-01 Serf collects debris. 00278_ ALERT: Infestation in the mines, dispatching Demolisher response squad. Player 2: "Quick, hide!" 00304_ G-34 Mercenary destroyed. 00316_ G-47 Trooper destroyed. 00316_ Switching to secondary target: as-07079. 00319_ as-60595 destroyed. 00319_ Switching to secondary target: as-26850. 00325_ as-07079 destroyed. 00325_ Switching to secondary target: as-81298. 00325_ Sml. Laser destroyed. 00326_ Wheel destroyed. 00328_ as-81298 destroyed. Map ----- +----------------------------------------------------+ | | | | | | | | | | | | | | | | | | | | | | | | | | | | | ?????????????????????????????????????? | | ??###????????????????????????????????? | | ?## #?????????????????########??????? | | ## ###??????????????# """ #??????? | | ##?????????????# """ #??????? | | #?????????????# """ #??????? | | #????????????## #??????? | | """ #????????????#T #??????? | | """ #?????????????# #??????? | | """ #??###?????????? [ ????????? | | #### #############%#?????????? | | # a@ %% @%#?????????? | | a % a #?????????? | | #### ###############?????????? | | ##??## #???????????????????????? | | #????## #???????????????????????? | | ##?????### #???????????????????????? | | ###????????# #???????????????????????? | | ???????????# #???????????????????????? | | ???????????# #???????????????????????? | | ???????????# #???????????????????????? | | ####???????? #???????????????????????? | | #???????? ???????????????????????? | | #????????##???????????????????????? | | #?????????????????????????????????? | | #?????????????????????????????????? | | #?????????????????????????????????? | | #?????????????????????????????????? | | #?????????????????????????????????? | | #?????????????????????????????????? | | ####?????????????????????????????????? | | ?????????????????????????????????????? | | ?????????????????????????????????????? | | ?????????????????????????????????????? | | ?????????????????????????????????????? | | ?????????????????????????????????????? | +----------------------------------------------------+ Best States ------------- Heat Dissipation 25 Coolant Potential 50 Energy Generation 10 Energy Capacity 125 Matter Stores 300 Matter Capacity 300 Sight Range 16 Terrain Scan Density 10 Resistance: KI 20 Resistance: TH 20 Resistance: EX 20 Resistance: EM 20 Resistance: I 20 Resistance: S 20 Resistance: P 20 Evasion (%) 44 Recoil Reduction 1 Offensive Hacking 10 Item Schematics ----------------- None Robot Schematics ------------------ None Fabricated ------------ Nothing Alien Tech Used ----------------- None Achievements -------------- None Challenges ------------ None Player 2 | -11 -10 -10 ---------- Run | Scr Mat Min Slots Evolved . | . . . Power . | . . . Propulsion . | . . . Utility . | . . . Weapon . | . . . Parts Attached 7 | . 6 1 Parts Lost 5 | . . 5 Damage Taken 644 | . 109 535 Core 225 | . . 225 Player 2/Cogmind (%) 85 | . . 88 Absorbed by Shields . | . . . Damage Inflicted 265 | . 190 75 Player 2/Cogmind (%) 25 | . 30 23 Combat Hostiles Destroyed 4 | . 3 1 Player 2/Cogmind (%) 28 | . 37 16 Game ------ Seed LongswordShockProtection Manual? 0 Play Time 00:05:39 Cumulative 49.7 hours Start 2021.11.14 @ 17:19:51 End 2021.11.14 @ 17:24:19 Sessions 1 Manual Loads 0 Difficulty Adventurer Special Mode AFD2020/Player2 Game No. 72 Rogue 0 Adventurer 72 Explorer 0 Win Type - Total 0 Types 0/0/0/0/0/0/0/0/0 Lore% 30 Gallery% 42 Achievement% 31 Wizard Run 0 Options --------- ASCII 0 Keyboard 1 Movement Numpad Keybinds 0 Fullscreen 1 Font 16/SmallcapsGlow Map View 75x55 Tactical HUD 1 Map Filters NONE Filters NONE Steam 1 RUN: 703139e0-ef47-4047-9368-961b60c007e1